Cogmind - Beta 14 @@@ ROGUE MODE // 2024.09.17 @ 23:26:20 Player: Duduxx Result: Destroyed by Y-45 Defender with Heavy Assault Rifle Performance ------------- Evolutions (2) 1000 Regions Visited (5) 1000 Robots Destroyed (70) 350 Value Destroyed (1930) 1930 Prototype IDs (4) 80 Alien Tech Used (0) 0 Bonus (200) 200 TOTAL SCORE: 4560 Bonus ------- High Alert Combat Kills 126 Follower Combat Kills 74 Cogmind --------- Core Integrity 0/550 Matter 79/300 Energy 28/100 System Corruption 0% Temperature Cool (9) Movement Core (400) Ox7 Location -8/Materials Parts ------- > --- POWER (2) -------- (None) > --- PROPULSION (3) --- Aluminum Leg > --- UTILITY (4) ------ Large Storage Unit Improved Sensor Array Terrain Scan Processor > --- WEAPON (2) ------- Hammer > --- INVENTORY (15) --- Aluminum Leg Aluminum Leg Cooled Airjet VTOL Module Improved Flight Unit Improved Flight Unit Improved Flight Unit Medium Storage Unit Grenade Launcher Rocket Launcher Remote Datajack Peak State ------------ > --- POWER ------------ Light Ion Engine Micro Nuclear Core > --- PROPULSION ------- Improved Flight Unit Improved Flight Unit Improved Flight Unit > --- UTILITY ---------- Large Storage Unit Weight Redist. System Improved Terrain Scanner Terrain Scan Processor > --- WEAPON ----------- High-powered Shotgun High-powered Shotgun > --- INVENTORY -------- Compact Wheel Compact Wheel VTOL Module Medium Storage Unit Improved EM Shotgun Improved EM Shotgun Gauss Cannon Grenade Launcher Rocket Launcher Remote Datajack Hammer [Rating: 30] Favorites ----------- Power Heavy Ion Engine Engine Heavy Ion Engine Power Core Micro Nuclear Core Propulsion Light Treads Treads Light Treads Leg Aluminum Leg Wheel Compact Wheel Hover Unit Hover Unit Flight Unit Improved Flight Unit Utility Large Storage Unit Device Heat Sink Storage Large Storage Unit Processor Visual Processing Unit Protection Light Armor Plating Weapon High-powered Shotgun Energy Gun EM Pulse Gun Ballistic Gun High-powered Shotgun Ballistic Cannon Gauss Cannon Launcher Grenade Launcher Special Weapon Welding Torch Impact Weapon Hammer Build | -11 -10 -10 -9 -9 -8 ------- Run | Yrd Mat Min Mat Min Mat Slots Evolved 4 | . . . 2 . 2 Power 1 | . . . . . 1 Propulsion 1 | . . . . . 1 Utility 2 | . . . 2 . . Weapon . | . . . . . . Parts Attached 84 | 6 2 1 22 24 29 Power 8 | 1 . . 2 1 4 Engine 4 | 1 . . 2 . 1 Core 4 | . . . . 1 3 Reactor . | . . . . . . Propulsion 31 | 2 . . 6 9 14 Treads 6 | 2 . . 2 1 1 Leg 9 | . . . 2 2 5 Wheel 6 | . . . . 3 3 Hover 2 | . . . 1 . 1 Flight 8 | . . . 1 3 4 Utility 21 | 1 2 . 7 6 5 Device 8 | . . . 4 3 1 Storage 5 | 1 1 . . 1 2 Processor 6 | . . . 3 1 2 Hackware . | . . . . . . Protection 2 | . 1 . . 1 . Artifact . | . . . . . . Weapon 24 | 2 . 1 7 8 6 Energy Gun 5 | 1 . . 2 . 2 Energy Cannon . | . . . . . . Ballistic Gun 14 | 1 . 1 5 6 1 Ballistic Cannon 1 | . . . . . 1 Launcher 1 | . . . . . 1 Special Weapon 1 | . . . . 1 . Impact Weapon 2 | . . . . 1 1 Slashing Weapon . | . . . . . . Piercing Weapon . | . . . . . . Special Melee Weapon . | . . . . . . Unidentified Prototypes 4 | . . . 3 . 1 Parts Lost 25 | . . 1 8 2 14 Power 6 | . . . 2 . 4 Propulsion 5 | . . . 2 . 3 Utility 6 | . . . 3 1 2 Weapon 8 | . . 1 1 1 5 Highest Loss Streak 10 | . . 1 3 1 10 To Critical Strikes . | . . . . . . Average Slot Usage (%) 93 | . 97 100 96 93 79 Engine 8 | . 14 14 10 . 2 Core 3 | . . . . 10 9 Treads 14 | . 28 28 17 4 1 Leg 3 | . . . 3 4 3 Wheel 3 | . . . . 10 11 Device 14 | . . . 17 20 13 Storage 11 | . 14 14 11 10 9 Processor 9 | . . . 12 11 12 Protection 2 | . 11 14 . . . Energy Gun 4 | . 14 12 3 1 . Ballistic Gun 16 | . 14 15 18 17 8 Peak Build Rating 30 | 6 7 7 21 23 30 Average Rating 15 | 4 6 6 14 20 20 On Entrance 10 | . 6 7 7 19 23 Naked Turns . | . . . . . . Heaviest Build 41 | 11 29 29 36 36 41 Greatest Support 50 | 40 40 40 43 38 50 Greatest Overweight (x) 9 | . . . 5 3 9 Average Overweight (x) . | . . . . . . Largest Inventory Capacity 15 | 8 15 15 15 15 15 Average Capacity 14 | 7 10 15 15 14 14 Most Carried 15 | 1 5 6 15 15 14 Average Carried 9 | . 2 5 9 12 10 Final Capacity 15 | 8 15 15 15 15 15 Final Carried 15 | 1 5 6 15 13 11 Class Distribution -------------------- 63% | Mutant 36% | Scavenger-Mutant Dominant Class ---------------- Mutant | -10/Materials Mutant | -10/Mines Mutant | -9/Materials Scavenger-Mutant | -9/Mines Mutant | -8/Materials Resources | -11 -10 -10 -9 -9 -8 ----------- Run | Yrd Mat Min Mat Min Mat Matter Collected 1628 | 186 40 66 623 406 307 Remotely . | . . . . . . Salvage Created 2611 | . 87 126 1202 189 1007 Parts 152 | . 2 7 83 7 53 Haulers Intercepted 5 | . . . 4 . 1 Recyclers Shooed 1 | . . . . 1 . Parts Field Recycled . | . . . . . . Retrieved Matter . | . . . . . . Parts Self-Destructed . | . . . . . . Prevented . | . . . . . . Kills | -11 -10 -10 -9 -9 -8 ------- Run | Yrd Mat Min Mat Min Mat Combat Hostiles Destroyed 56 | . 2 3 28 6 17 Melee 1 | . . . . . 1 Guns 45 | . 1 3 27 6 8 Cannons 5 | . . . . . 5 AOE 5 | . 1 . 1 . 3 Classes Destroyed 13 | . 1 1 8 2 1 Worker 4 | . . . 4 . . Builder 2 | . . . 1 . 1 Tunneler 1 | . . . 1 . . Hauler 5 | . . . 4 . 1 Recycler 5 | . . . . 2 3 Mechanic 1 | . . . 1 . . Watcher 1 | . . . 1 . . Swarmer 11 | . . 3 8 . . Grunt 27 | . 2 . 13 1 11 Brawler 1 | . . . 1 . . Sentry 11 | . . . 6 . 5 Hunter 1 | . . . . . 1 Assembled 5 | . . . . 5 . Best Kill Streak 9 | . 2 3 9 3 6 Combat Bots Only 6 | . 2 3 6 2 6 Max Kills in Single Turn 5 | . 1 1 5 1 4 Gunslinging 1 | . . . 1 . . Exploded 1 | . 1 . 1 . 1 Melee 1 | . . . . . 1 Uniques/NPCs Destroyed . | . . . . . . Combat | -11 -10 -10 -9 -9 -8 -------- Run | Yrd Mat Min Mat Min Mat Hostile Shots Fired 326 | . 12 15 99 43 157 Missed 95 | . 5 2 26 12 50 Damage Taken 3309 | . 82 113 921 480 1713 Core 821 | . . 23 169 74 555 Absorbed by Shields . | . . . . . . Core Remaining (%) 76 | 100 . 90 . 39 . Volleys Fired 167 | . 8 9 78 17 55 Largest 2 | . 2 2 2 2 2 Hottest 90 | . 60 60 50 50 90 Shots Fired 299 | . 16 17 158 25 83 Gun 272 | . 16 17 158 25 56 Cannon 26 | . . . . . 26 Launcher 1 | . . . . . 1 Special . | . . . . . . Kinetic 263 | . 8 9 157 25 64 Thermal . | . . . . . . Explosive 1 | . . . . . 1 Electromagnetic 35 | . 8 8 1 . 18 Robot Hit Streak 13 | . 7 6 8 9 13 Robot Miss Streak 5 | . 3 2 5 3 5 Penetration Max . | . . . . . . Secondary Targets 9 | . . 2 3 . 4 Max Gunslinging Chain 1 | . . 1 1 . 1 Shots Hit Robots 205 | . 10 10 105 21 59 Core Hits 134 | . 4 5 65 15 45 Critical Kills 1 | . . . 1 . . Critical Parts Destroyed 1 | . . . 1 . . Critical Strikes 8 | . . . 2 . 6 Destroy 2 | . . . 2 . . Blast 6 | . . . . . 6 Melee Attacks 4 | . . . . 2 2 Impact 4 | . . . . 2 2 Slashing . | . . . . . . Piercing . | . . . . . . Sneak Attacks . | . . . . . . Combat Hostiles . | . . . . . . Follow-up Attacks . | . . . . . . Damage Inflicted 4303 | . 129 101 1829 399 1845 Guns 2874 | . 92 101 1501 399 781 Cannons 476 | . . . . . 476 Explosions 867 | . 37 . 311 . 519 Melee 51 | . . . . . 51 Ramming 35 | . . . 17 . 18 Kinetic 2914 | . 41 39 1501 399 934 Thermal 213 | . 37 . 14 . 162 Explosive 568 | . . . 211 . 357 Electromagnetic 522 | . 51 62 86 . 323 Impact 51 | . . . . . 51 Slashing . | . . . . . . Piercing . | . . . . . . Highest Corruption 9 | . . . 9 9 . Average Corruption 9 | . . . 9 9 . Corruption Purged . | . . . . . . Corruption Blocked . | . . . . . . Effects 66 | . . . 47 19 . Message Errors 19 | . . . 15 4 . Matter Fused 12 | . . . 7 5 . Heat Flow Errors 5 | . . . 3 2 . Energy Discharges 8 | . . . 5 3 . Parts Rejected 3 | . . . 2 1 . Data Loss (minor) 6 | . . . 3 3 . Data Loss (major) 4 | . . . 4 . . Misfires 5 | . . . 4 1 . Alerts 2 | . . . 2 . . Weapon Failures 2 | . . . 2 . . Overload Shots . | . . . . . . Overflow Damage 62 | . . . . . 62 Projectiles 9 | . . . . . 9 Explosions 53 | . . . . . 53 Melee . | . . . . . . Knockbacks 6 | . . . . . 6 Impact . | . . . . . . Kinetic 6 | . . . . . 6 Secondary . | . . . . . . Self-Inflicted Damage 95 | . . . 36 . 59 Shots 2 | . . . 1 . 1 Rammed 4 | . . . 1 . 3 Targets Rammed 5 | . . . 2 . 3 Kicked . | . . . . . . Crushed 1 | . . . 1 . . Highest Temperature 462 | . 142 88 186 277 462 Average Temperature 104 | . 71 35 85 129 128 Received Heat Transfer 1299 | . 63 . 288 84 864 Effects 2 | . . . . . 2 Shutdowns 1 | . . . . . 1 Short Circuit 1 | . . . . . 1 Siege Activations . | . . . . . . Robots Corrupted . | . . . . . . Combat Hostiles . | . . . . . . Parts Fried 2 | . . . . . 2 Impact Corruptions . | . . . . . . Robots Melted . | . . . . . . Combat Hostiles . | . . . . . . Parts Melted . | . . . . . . Heat Transferred 300 | . 50 . 50 . 200 Parts Sabotaged . | . . . . . . Parts Stolen . | . . . . . . Parts Stripped . | . . . . . . Power Chain Reactions 5 | . 1 . 2 . 2 Alert | -11 -10 -10 -9 -9 -8 ------- Run | Yrd Mat Min Mat Min Mat Peak Influence 712 | . 58 92 712 121 414 Initial 91 | . . 22 35 91 . Average 182 | . 31 33 306 65 153 Maximum Alert Level 3 | . . . 3 . 2 Low Security (%) 53 | 100 100 100 12 100 59 Level 1 35 | . . . 64 . 39 Level 2 9 | . . . 21 . . Level 3 . | . . . 1 . . Level 4 . | . . . . . . Level 5 . | . . . . . . High Security . | . . . . . . Max Security . | . . . . . . Squads Dispatched 13 | . . . 6 1 6 Investigation 7 | . . . 3 1 3 Extermination . | . . . . . . Reinforcement 4 | . . . 3 . 1 Assault . | . . . . . . Garrison 2 | . . . . . 2 Intercept . | . . . . . . Searches Triggered . | . . . . . . Construction Impeded 1 | . . . . . 1 Haulers Reinforced . | . . . . . . Active Scanning Responses . | . . . . . . Cargo Convoy Interrupts . | . . . . . . Stealth | -11 -10 -10 -9 -9 -8 --------- Run | Yrd Mat Min Mat Min Mat Distress Signals 6 | . . . 4 . 2 Communications Jammed . | . . . . . . Distress Signals . | . . . . . . Times Spotted 94 | . 3 3 41 21 26 Peak Tracking Total 9 | . 2 3 9 7 7 Tactical Retreats 4 | . . . 2 1 1 Traps | -11 -10 -10 -9 -9 -8 ------- Run | Yrd Mat Min Mat Min Mat Traps Triggered 2 | . . . 1 . 1 Indirectly . | . . . . . . Trap Hack Attempts . | . . . . . . Triggered . | . . . . . . Disarmed . | . . . . . . Reprogrammed . | . . . . . . Reused . | . . . . . . Traps Extracted . | . . . . . . Installed . | . . . . . . Triggered . | . . . . . . Machines | -11 -10 -10 -9 -9 -8 ---------- Run | Yrd Mat Min Mat Min Mat Machines Disabled 7 | . . . 6 . 1 Max in Single Turn 3 | . . . 3 . 1 Machines Repaired . | . . . . . . Machines Dismantled . | . . . . . . Machines Sabotaged . | . . . . . . Overloaded Fab Kills . | . . . . . . Hacking | -11 -10 -10 -9 -9 -8 --------- Run | Yrd Mat Min Mat Min Mat Machines Accessed 12 | . . . 7 1 4 Terminals 8 | . . . 6 . 2 Fabricators . | . . . . . . Repair Stations . | . . . . . . Recycling Units . | . . . . . . Scanalyzers 2 | . . . 1 . 1 Garrison Access 1 | . . . . . 1 Total Hacks 37 | . . . 23 1 13 Successful 17 | . . . 13 1 3 Failed 20 | . . . 10 . 10 Catastrophic 4 | . . . 2 . 2 Database Lockouts . | . . . . . . Manual 12 | . . . 9 . 3 Terminals 27 | . . . 20 . 7 Fabricators . | . . . . . . Repair Stations . | . . . . . . Recycling Units . | . . . . . . Scanalyzers 6 | . . . 3 . 3 Garrison Access 3 | . . . . . 3 Terminal Hacks 13 | . . . 11 1 1 Open Door 1 | . . . . 1 . Alert Level 4 | . . . 3 . 1 Unreport Threat 3 | . . . 3 . . Transport Status 2 | . . . 2 . . Hauler Manifests 2 | . . . 2 . . Zone Layout 1 | . . . 1 . . Fabricator Hacks . | . . . . . . Repair Station Hacks . | . . . . . . Recycling Unit Hacks . | . . . . . . Scanalyzer 4 | . . . 2 . 2 Insert Component 2 | . . . 1 . 1 Analyze 2 | . . . 1 . 1 Garrison Access Hacks . | . . . . . . Unauthorized Hacks . | . . . . . . Terminals . | . . . . . . Fabricators . | . . . . . . Repair Stations . | . . . . . . Recycling Units . | . . . . . . Scanalyzers . | . . . . . . Garrison Access . | . . . . . . Data Cores Recovered . | . . . . . . Used . | . . . . . . Hacking Detections 10 | . . . 6 . 4 Full Trace Events 8 | . . . 5 . 3 Feedback Events . | . . . . . . Feedback Blocked . | . . . . . . Robot Schematics Acquired . | . . . . . . Robots Built . | . . . . . . Authchips . | . . . . . . Time . | . . . . . . Total Robot Build Rating . | . . . . . . Part Schematics Acquired 2 | . . . 1 . 1 Parts Built . | . . . . . . Authchips . | . . . . . . Time . | . . . . . . Total Part Build Rating . | . . . . . . Parts Repaired . | . . . . . . Time . | . . . . . . Parts Recycled . | . . . . . . Recycled Matter . | . . . . . . Retrieved Matter . | . . . . . . Retrieved Components . | . . . . . . Parts Scanalyzed 2 | . . . 1 . 1 Part Schematics Acquired 2 | . . . 1 . 1 Parts Damaged . | . . . . . . Bothacking | -11 -10 -10 -9 -9 -8 ------------ Run | Yrd Mat Min Mat Min Mat Used RIF Installer . | . . . . . . Robots Hacked . | . . . . . . Non-combat . | . . . . . . Combat . | . . . . . . Robot Hacks Applied . | . . . . . . Relay Couplers Released . | . . . . . . Fabnet Peak Effective % . | . . . . . . Robots Rewired . | . . . . . . Allies Hacked . | . . . . . . Hacks Repelled . | . . . . . . Allies | -11 -10 -10 -9 -9 -8 -------- Run | Yrd Mat Min Mat Min Mat Total Allies 1 | . . 1 . . . Largest Group 1 | . . 1 1 . . Highest-Rated Group 31 | . . 31 31 . . Highest-Rated Ally 31 | . . 31 31 . . Total Orders . | . . . . . . Ally Attacks 16 | . . . 16 . . Total Damage 231 | . . . 231 . . Kills 4 | . . . 4 . . Allies Corrupted . | . . . . . . Allies Melted . | . . . . . . Intel | -11 -10 -10 -9 -9 -8 ------- Run | Yrd Mat Min Mat Min Mat Robot Analysis Total . | . . . . . . Derelict Logs Recovered 1 | . . 1 . . . Drone Launches . | . . . . . . Drone Recoveries . | . . . . . . Exploration | -11 -10 -10 -9 -9 -8 ------------- Run | Yrd Mat Min Mat Min Mat Turns Passed 3345 | 58 353 243 1543 672 476 Spaces Moved 1658 | 33 202 136 674 408 205 Core 9 | 3 . . . 2 4 Treads 1098 | 30 202 136 668 54 8 Legs 91 | . . . 4 62 25 Wheels 432 | . . . . 267 165 Hover 3 | . . . 2 . 1 Flight 25 | . . . . 23 2 Fastest Speed 37 | 50 160 160 160 37 96 Average Speed 160 | 150 160 160 187 133 125 Slowest Speed 500 | 160 160 160 380 260 500 Overloaded Moves . | . . . . . . Propulsion Burnouts . | . . . . . . Robots Hopped . | . . . . . . Cave-ins Triggered . | . . . . . . Exploration Rate (%) 45 | 3 43 50 67 86 22 Regions Visited 5 Branch Regions 2 Pre-discovered Areas . | . . . . . . Known Exits Taken . | . . . . . . Unknown Exits Taken 5 | 1 1 1 1 1 . Scrap Searched 1 | . . . . 1 . Spaces Dug 1 | . . . . 1 . Terrain Destroyed 70 | . 8 . 4 1 57 Melee 1 | . . . . 1 . Projectile 12 | . . . . . 12 AOE 57 | . 8 . 4 . 45 Terrain Rammed . | . . . . . . Walls Destroyed . | . . . . . . Machines Disabled . | . . . . . . Actions | -11 -10 -10 -9 -9 -8 --------- Run | Yrd Mat Min Mat Min Mat Total 2062 | 39 217 146 811 512 337 Wait 53 | . 1 . 12 19 21 Move 1653 | 32 201 135 673 407 205 Hop . | . . . . . . Pick Up 37 | 1 4 1 10 18 3 Fast Attach 45 | 6 1 1 14 9 14 Attach 26 | . . . 6 8 12 Detach 28 | . . . 7 8 13 Swap 14 | . 1 . 3 7 3 Drop 30 | . 1 . 6 17 6 Fire 167 | . 8 9 78 17 55 Melee 4 | . . . . 2 2 Ram 3 | . . . . . 3 Kick . | . . . . . . Crush 2 | . . . 2 . . Escape Stasis . | . . . . . . Rewire . | . . . . . . Trap . | . . . . . . Miscellaneous . | . . . . . . Route ------- -11/Scrapyard -10/Materials -10/Mines -9/Materials (discovered 3 exits: *Mat / *Min x2) -9/Mines -8/Materials History --------- Turn | Location | Event 42 | -11/Scrapyard | Discovered new exit (range 12) 59 | -11/Scrapyard | Entered Materials 257 | -10/Materials | Discovered new exit (range 15) 328 | -10/Materials | Build established: Mutant 412 | -10/Materials | Entered Mines 422 | -10/Mines | Learned Materials emergency access door positions 614 | -10/Mines | Discovered new exit (range 10) 639 | -10/Mines | Escorted by a lone wolf Derelict 655 | -10/Mines | Entered Materials 655 | -9/Materials | Accompanied by 1 ally 655 | -9/Materials | Evolved 2 slots: Utility x2 928 | -9/Materials | Discovered new exit (range 9) 1039 | -9/Materials | Lost 3 parts (1p2u) 1126 | -9/Materials | Discovered new exit (range 17) 1412 | -9/Materials | Discovered new exit (range 16) 1517 | -9/Materials | Build established: Scavenger-Mutant 2198 | -9/Materials | Entered Mines 2214 | -9/Mines | Met a Derelict shopkeep closing up shop 2288 | -9/Mines | Core integrity fell below 50% 2306 | -9/Mines | Build established: Mutant 2424 | -9/Mines | Assembled infested the area 2702 | -9/Mines | Met a Derelict who couldn't figure out how to use a Trap Extractor 2830 | -9/Mines | Build established: Scavenger-Mutant 2856 | -9/Mines | Discovered new exit (range 10) 2870 | -9/Mines | Entered Materials 2870 | -8/Materials | Evolved 2 slots: Power x1, Propulsion x1 3129 | -8/Materials | Garrison activated, responded to threat 3177 | -8/Materials | Core integrity fell below 50% 3205 | -8/Materials | Lost 10 parts (2p2n2u4w) 3237 | -8/Materials | Core integrity fell below 20% 3318 | -8/Materials | Garrison activated, responded to threat 3346 | -8/Materials | Destroyed by Y-45 Defender with Heavy Assault Rifle Last Messages --------------- 03301_ Acquired 2 matter. 03302_ Acquired 10 matter. 03302_ Triggered Blade Trap. 03302_ Massive razor-sharp blades shoot up from within the floor. 03302_ Aluminum Leg severed. 03302_ Visual Processing Unit severed. 03302_ Aluminum Leg severed. 03306_ Critical hit (Burn: +37). 03306_ Lgt. Nuclear Core destroyed. 03311_ Acquired Aluminum Leg. 03318_ Y-45 Defender destroyed. 03318_ Destroyed Imp. Hover Unit. 03318_ W-25 Informer calls for garrison support. 03318_ ALERT: Activating Garrison Access M001. 03331_ Critical hit (Burn: +37). 03331_ U-05 Engineer destroyed. 03336_ Acquired Prototype Hover Unit. 03336_ Identified Cld. Airjet. 03342_ U-05 Engineer lays Concrete. Map ----- +----------------------------------------------------+ | ?????????????????????????????????????????????????? | | ?????????????????????????????????????????????????? | | ?????????????????????????????????????????????????? | | ?????????????????????????????????????????????????? | | ?????????????????????????????????????????????????? | | ?????????????????????????????????????????????????? | | ?????????????????????????????????????????????????? | | ?????????????????????????????????????????????????? | | ?????????????????????????????????????????????????? | | ?????????????????????????????????????????????????? | | ?????????????????????????????????????????????????? | | ?????????????????????????????????????????????????? | | ?????????????????????????????????????????????????? | | ????????????????????????????????#????????????????? | | ????????????????????????????? #????????????????? | | ????????????????????????????? ##???????????????? | | ???????????????????????????? #####???????????? | | ???????????????????????????? ???????????? | | ???????????????????????????? ?????????????? | | ???????????????????????????? ??????????????? | | ???????????????????????????? #???????????????? | | ???????????????????????????## #???????????????? | | ???????????????????????????# #???????????????? | | ????????????????????????#### w! #???????????????? | | ????????????????????????#== [%= #???????????????? | | ????????????????????????#@ = #???????????????? | | ????????????????????????#[[ #???????????????? | | ????????????????????????#[[ u #######?##???????? | | ????????????????????????#== ###???? ? ??????? | | ????????????????????????#== ##??? """?# ?#??? | | ????????????????????????#####Y #?? ? """ #??#??? | | ????????????????????????????#=!Y#??? """ #?????? | | ?????????????????????????#??#%! ### + ? ??? | | ?????????????????????????####*| +? ""?? ? | | ?????????????????????????# ##^=k### T"####??? | | ??????????????????????#####"##/#### ""###? ?? | | ??????????????????????# !%====%|#! " #?S?? | | ?????????????????????## [ =%%[%# #####???##"?"? | | ?????????????????????# %[*[###???#??##? "? | | ?????????????????????## """%[ !!# #??#?####? ? | | ??????????????????????# "G [ %###########????? | | ?????????????????????## """ %*%#="##!![###??? | | ???????????????????#?## ==%/%% %%[!"#?##??# | | ????????????????????#############+#######="#??#??# | | ???????????????????????"" *[!! ### "##??### | | ??????????????????????""" ## "" # #???## | | ??????????????????????""" ## ! """ # #?#??# | | ???????????????????? ## S" + T #????? | | ???????????????"?? # ? !?# """ # #####? | | ?????????????????? ??##+##### """ # ###?## | +----------------------------------------------------+ Best States ------------- Heat Dissipation 38 Energy Generation 23 Energy Capacity 380 Matter Stores 300 Matter Capacity 300 Sight Range 18 Robot Scan Range 15 Terrain Scan Range 16 Terrain Scan Density 85 Additional Mass Support 6 Armor Coverage 150 Evasion (%) 50 Targeting Accuracy 8 Recoil Reduction 2 Item Schematics ----------------- Imp. Flight Unit | -9/Materials | Scanalyzed Remote Datajack | -8/Materials | Scanalyzed Robot Schematics ------------------ None Fabricated ------------ Nothing Alien Tech Used ----------------- None Achievements -------------- None Challenges ------------ None Game ------ Seed MagneticMagneticNanosword Manual? 0 Play Time 00:29:19 Cumulative 44.7 hours Start 2024.09.17 @ 22:56:27 End 2024.09.17 @ 23:26:20 Sessions 1 Manual Loads 0 Difficulty Rogue Special Mode None Game No. 99 Rogue 99 Adventurer 0 Explorer 0 Win Type - Total 0 Types 0/0/0/0/0/0/0/0/0 Lore% 16 Gallery% 32 Achievement% 26 Wizard Run 0 Options --------- Layout 1 ASCII 0 Keyboard 1 Movement Arrows Keybinds 0 Fullscreen 1 Font 24/Smallcaps Map View 50x35 Zoom Use 0% Tactical HUD 1 Map Filters NONE Filters NONE Steam 1 RUN: c7c216e2-43f1-4312-b4a3-4e2a30bb5881